[Event "*** Titled Tuesday Blitz"]
[Site "Chess.com"]
[Date "2019.03.05"]
[Round "7"]
[White "NoGalloNoParty"]
[Black "GelmanAlexander"]
[Result "1/2-1/2"]
[WhiteElo "2353"]
[BlackElo "2582"]
[TimeControl "180+2"]
[EndTime "14:41:31 PST"]
[Termination "Game drawn by agreement"]

1. Nf3 {[%clk 0:02:58.7]} 1... c5 {[%clk 0:03:00.5]} 2. c4 {[%clk 0:02:58.7]}
2... Nf6 {[%clk 0:03:01.6]} 3. g3 {[%clk 0:02:59.5]} 3... e6 {[%clk 0:03:03]} 4.
Bg2 {[%clk 0:02:59.9]} 4... Be7 {[%clk 0:03:04.6]} 5. b3 {[%clk 0:03:00.9]} 5...
O-O {[%clk 0:03:06]} 6. O-O {[%clk 0:03:02.1]} 6... a6 {[%clk 0:03:06.8]} 7. e3
{[%clk 0:03:00.7]} 7... d6 {[%clk 0:03:08]} 8. d4 {[%clk 0:02:59.1]} 8... cxd4
{[%clk 0:03:08.5]} 9. Nxd4 {[%clk 0:02:55.1]} 9... Qc7 {[%clk 0:03:09.2]} 10.
Bb2 {[%clk 0:02:54.9]} 10... Nbd7 {[%clk 0:03:10.3]} 11. Nc3 {[%clk 0:02:52.8]}
11... Ne5 {[%clk 0:03:11.3]} 12. Rc1 {[%clk 0:02:48.1]} 12... Bd7 {[%clk
0:03:12.2]} 13. Qe2 {[%clk 0:02:44.5]} 13... Rac8 {[%clk 0:03:12.6]} 14. Rfd1
{[%clk 0:02:44.5]} 14... Rfd8 {[%clk 0:03:12.1]} 15. h3 {[%clk 0:02:38.1]} 15...
h6 {[%clk 0:03:12.6]} 16. f4 {[%clk 0:02:12.2]} 16... Ng6 {[%clk 0:03:13.2]} 17.
Kh2 {[%clk 0:02:07.3]} 17... Qb8 {[%clk 0:03:13.7]} 18. a4 {[%clk 0:01:51.1]}
18... Qc7 {[%clk 0:03:13.9]} 19. Qf3 {[%clk 0:01:08.9]} 19... Rb8 {[%clk
0:03:04.3]} 20. e4 {[%clk 0:01:02.5]} 20... Qb6 {[%clk 0:02:52.3]} 21. Ra1
{[%clk 0:00:51.6]} 21... Qc7 {[%clk 0:02:26.6]} 22. Qe2 {[%clk 0:00:48.1]} 22...
Rbc8 {[%clk 0:02:26.6]} 23. Rac1 {[%clk 0:00:43.9]} 23... Qb6 {[%clk 0:02:26.4]}
24. Ra1 {[%clk 0:00:44.2]} 24... h5 {[%clk 0:02:15.4]} 25. e5 {[%clk 0:00:31.9]}
25... dxe5 {[%clk 0:02:10.3]} 26. fxe5 {[%clk 0:00:32.9]} 26... Nh7 {[%clk
0:02:09.8]} 27. Qxh5 {[%clk 0:00:33.2]} 27... Be8 {[%clk 0:02:02.2]} 28. Ne4
{[%clk 0:00:31.3]} 28... Qc7 {[%clk 0:01:27.8]} 29. Nf3 {[%clk 0:00:31.7]} 29...
Bc6 {[%clk 0:01:26.3]} 30. Nd6 {[%clk 0:00:23.1]} 30... Bxd6 {[%clk 0:01:26.8]}
31. exd6 {[%clk 0:00:23.8]} 31... Rxd6 {[%clk 0:01:28.2]} 32. Ne5 {[%clk
0:00:24.6]} 32... Rxd1 {[%clk 0:01:17.7]} 33. Rxd1 {[%clk 0:00:23.6]} 33... Nf6
{[%clk 0:01:10.3]} 34. Qg5 {[%clk 0:00:22.3]} 34... Bxg2 {[%clk 0:00:54.6]} 35.
Kxg2 {[%clk 0:00:18.7]} 35... Ne4 {[%clk 0:00:32.2]} 36. Qh5 {[%clk 0:00:16]}
36... Rd8 {[%clk 0:00:21]} 37. Rd4 {[%clk 0:00:08.9]} 37... Rxd4 {[%clk
0:00:16.5]} 38. Bxd4 {[%clk 0:00:10.8]} 38... Nxe5 {[%clk 0:00:14.9]} 39. Bxe5
{[%clk 0:00:08.5]} 39... Qc6 {[%clk 0:00:15.2]} 40. Qf3 {[%clk 0:00:09.2]} 40...
f6 {[%clk 0:00:14.8]} 41. Bb2 {[%clk 0:00:09.4]} 41... e5 {[%clk 0:00:15.8]} 42.
Kh2 {[%clk 0:00:09.5]} 42... Kf7 {[%clk 0:00:16.8]} 43. g4 {[%clk 0:00:10.6]}
43... g6 {[%clk 0:00:15.4]} 44. Bxe5 {[%clk 0:00:11.5]} 44... Ke6 {[%clk
0:00:13.1]} 45. Bb2 {[%clk 0:00:11.1]} 45... Qd6+ {[%clk 0:00:13.8]} 46. Kg2
{[%clk 0:00:11.5]} 46... Qd2+ {[%clk 0:00:14.8]} 47. Kg1 {[%clk 0:00:11.7]}
47... f5 {[%clk 0:00:13.9]} 48. gxf5+ {[%clk 0:00:12.2]} 48... gxf5 {[%clk
0:00:15.3]} 49. Ba3 {[%clk 0:00:11.6]} 49... Qe1+ {[%clk 0:00:13.3]} 50. Kg2
{[%clk 0:00:12.6]} 50... Qd2+ {[%clk 0:00:13.7]} 51. Kg1 {[%clk 0:00:13.8]}
51... Qc2 {[%clk 0:00:14.6]} 52. Qg2 {[%clk 0:00:08.5]} 52... Qxb3 {[%clk
0:00:10.4]} 53. Bf8 {[%clk 0:00:09.9]} 53... Qxc4 {[%clk 0:00:08.7]} 54. Qg6+
{[%clk 0:00:10.9]} 54... Nf6 {[%clk 0:00:09.5]} 55. Bg7 {[%clk 0:00:10.6]} 55...
Qd4+ {[%clk 0:00:09.3]} 56. Kf1 {[%clk 0:00:10.5]} 56... Qd3+ {[%clk 0:00:09.7]}
57. Kg1 {[%clk 0:00:11.4]} 57... Qe3+ {[%clk 0:00:09.8]} 58. Kf1 {[%clk
0:00:11.8]} 58... Qd3+ {[%clk 0:00:10.2]} 59. Kg1 {[%clk 0:00:13]} 59... Qd4+
{[%clk 0:00:11.4]} 60. Kf1 {[%clk 0:00:14.2]} 60... b5 {[%clk 0:00:12.6]} 61.
axb5 {[%clk 0:00:14.6]} 61... axb5 {[%clk 0:00:13.9]} 62. Bxf6 {[%clk
0:00:14.7]} 62... Qxf6 {[%clk 0:00:14.9]} 63. Qe8+ {[%clk 0:00:16.4]} 63... Qe7
{[%clk 0:00:13.5]} 64. Qxb5 {[%clk 0:00:18.3]} 64... Kf6 {[%clk 0:00:13.7]} 65.
Qb2+ {[%clk 0:00:19]} 65... Kg5 {[%clk 0:00:14.1]} 66. Qg2+ {[%clk 0:00:20.5]}
66... Kf6 {[%clk 0:00:15]} 67. Qg3 {[%clk 0:00:21.5]} 67... Qe4 {[%clk
0:00:15.4]} 68. Kf2 {[%clk 0:00:22]} 1/2-1/2

[Event "*** Titled Tuesday Blitz"]
[Site "Chess.com"]
[Date "2019.03.05"]
[Round "7"]
[White "SamCopeland"]
[Black "1995Tiger"]
[Result "1/2-1/2"]
[WhiteElo "2045"]
[BlackElo "1969"]
[TimeControl "180+2"]
[EndTime "14:41:36 PST"]
[Termination "Game drawn - insufficient material"]

1. e4 {[%clk 0:03:01.9]} 1... e6 {[%clk 0:02:58.8]} 2. d4 {[%clk 0:03:01]} 2...
d5 {[%clk 0:03:00.4]} 3. e5 {[%clk 0:03:01.5]} 3... c5 {[%clk 0:03:01.3]} 4. c3
{[%clk 0:03:02.9]} 4... Nc6 {[%clk 0:03:02.9]} 5. Nf3 {[%clk 0:03:03.9]} 5...
Bd7 {[%clk 0:03:04.5]} 6. a3 {[%clk 0:03:02.8]} 6... Nge7 {[%clk 0:03:04.3]} 7.
Bd3 {[%clk 0:03:02.9]} 7... cxd4 {[%clk 0:03:02.5]} 8. cxd4 {[%clk 0:03:03.4]}
8... Ng6 {[%clk 0:02:57.8]} 9. h4 {[%clk 0:03:00.1]} 9... Qb6 {[%clk 0:02:49.1]}
10. h5 {[%clk 0:02:55.4]} 10... Nge7 {[%clk 0:02:50.2]} 11. Bc2 {[%clk 0:02:32]}
11... Nf5 {[%clk 0:02:14.6]} 12. Bxf5 {[%clk 0:02:30.9]} 12... exf5 {[%clk
0:02:16.5]} 13. Nc3 {[%clk 0:02:31.9]} 13... Be6 {[%clk 0:02:18]} 14. b4 {[%clk
0:02:14.1]} 14... h6 {[%clk 0:02:07.3]} 15. Na4 {[%clk 0:02:08.6]} 15... Qd8
{[%clk 0:02:06.5]} 16. Nc5 {[%clk 0:02:00.1]} 16... Bxc5 {[%clk 0:01:52]} 17.
dxc5 {[%clk 0:01:56.1]} 17... d4 {[%clk 0:01:50.7]} 18. Bb2 {[%clk 0:01:55.2]}
18... d3 {[%clk 0:01:42.3]} 19. Qd2 {[%clk 0:01:36.4]} 19... Qd5 {[%clk
0:01:21]} 20. Rh4 {[%clk 0:01:25.1]} 20... a6 {[%clk 0:00:47]} 21. a4 {[%clk
0:01:18.7]} 21... O-O {[%clk 0:00:39.2]} 22. Rd1 {[%clk 0:01:10.5]} 22... Qb3
{[%clk 0:00:28.2]} 23. Nd4 {[%clk 0:00:36.9]} 23... Nxd4 {[%clk 0:00:16.1]} 24.
Rxd4 {[%clk 0:00:38.8]} 24... Rad8 {[%clk 0:00:10.8]} 25. Qxd3 {[%clk
0:00:38.2]} 25... Rxd4 {[%clk 0:00:08.4]} 26. Qxd4 {[%clk 0:00:35.9]} 26... Qxa4
{[%clk 0:00:06.9]} 27. Kf1 {[%clk 0:00:35]} 27... Qc6 {[%clk 0:00:07.3]} 28. Kg1
{[%clk 0:00:33.4]} 28... Qe4 {[%clk 0:00:08.4]} 29. Qxe4 {[%clk 0:00:33.6]}
29... fxe4 {[%clk 0:00:10.3]} 30. Rd4 {[%clk 0:00:16.8]} 30... Rc8 {[%clk
0:00:11.2]} 31. Rxe4 {[%clk 0:00:16.3]} 31... a5 {[%clk 0:00:12.3]} 32. bxa5
{[%clk 0:00:16]} 32... Rxc5 {[%clk 0:00:13.2]} 33. Rb4 {[%clk 0:00:13.7]} 33...
Bd5 {[%clk 0:00:14]} 34. Ra4 {[%clk 0:00:04]} 34... Bc6 {[%clk 0:00:11.9]} 35.
Ra3 {[%clk 0:00:04]} 35... Rb5 {[%clk 0:00:11.2]} 36. Bd4 {[%clk 0:00:04.6]}
36... Rb1+ {[%clk 0:00:09.9]} 37. Kh2 {[%clk 0:00:05.4]} 37... Rd1 {[%clk
0:00:10]} 38. Be3 {[%clk 0:00:06]} 38... Rd5 {[%clk 0:00:10.4]} 39. a6 {[%clk
0:00:04.9]} 39... bxa6 {[%clk 0:00:07.5]} 40. Rxa6 {[%clk 0:00:06.8]} 40... Bb5
{[%clk 0:00:06.3]} 41. Rb6 {[%clk 0:00:07.5]} 41... Rxe5 {[%clk 0:00:06.7]} 42.
g4 {[%clk 0:00:07.2]} 42... Be2 {[%clk 0:00:04.9]} 43. Kg3 {[%clk 0:00:07.6]}
43... Re8 {[%clk 0:00:04.9]} 44. Rb4 {[%clk 0:00:07.7]} 44... Bd3 {[%clk
0:00:04.7]} 45. g5 {[%clk 0:00:08.2]} 45... hxg5 {[%clk 0:00:05.7]} 46. Bxg5
{[%clk 0:00:08.9]} 46... f6 {[%clk 0:00:06.8]} 47. Be3 {[%clk 0:00:09.5]} 47...
Re7 {[%clk 0:00:07.8]} 48. h6 {[%clk 0:00:10.3]} 48... g5 {[%clk 0:00:08.3]} 49.
Rb6 {[%clk 0:00:08.3]} 49... Rf7 {[%clk 0:00:08.1]} 50. Bd4 {[%clk 0:00:08.7]}
50... Kh7 {[%clk 0:00:07.4]} 51. Rxf6 {[%clk 0:00:08.8]} 51... Rxf6 {[%clk
0:00:08.1]} 52. Bxf6 {[%clk 0:00:10.7]} 52... Kxh6 {[%clk 0:00:09.3]} 53. Bxg5+
{[%clk 0:00:11.8]} 53... Kxg5 {[%clk 0:00:08.7]} 54. f4+ {[%clk 0:00:13.7]}
54... Kf5 {[%clk 0:00:09.9]} 55. Kf3 {[%clk 0:00:14.5]} 55... Be4+ {[%clk
0:00:11.8]} 56. Ke3 {[%clk 0:00:15.2]} 56... Bd5 {[%clk 0:00:13.7]} 57. Kd4
{[%clk 0:00:16.4]} 57... Be6 {[%clk 0:00:15.6]} 58. Ke3 {[%clk 0:00:17.4]} 58...
Bf7 {[%clk 0:00:17.5]} 59. Kd4 {[%clk 0:00:18.9]} 59... Bg6 {[%clk 0:00:19.4]}
60. Ke3 {[%clk 0:00:20.3]} 60... Bh5 {[%clk 0:00:21.3]} 61. Kd4 {[%clk 0:00:22]}
61... Bg4 {[%clk 0:00:23.2]} 62. Ke3 {[%clk 0:00:23.9]} 62... Bh5 {[%clk
0:00:25.1]} 63. Kd4 {[%clk 0:00:25.8]} 63... Bg6 {[%clk 0:00:27]} 64. Ke3 {[%clk
0:00:27.7]} 64... Bf7 {[%clk 0:00:28.9]} 65. Kd4 {[%clk 0:00:29.6]} 65... Bg8
{[%clk 0:00:30.8]} 66. Ke3 {[%clk 0:00:31.5]} 66... Bh7 {[%clk 0:00:32.7]} 67.
Kd4 {[%clk 0:00:33.4]} 67... Bg6 {[%clk 0:00:34.6]} 68. Ke3 {[%clk 0:00:35.3]}
68... Be8 {[%clk 0:00:36.5]} 69. Kd4 {[%clk 0:00:37.2]} 69... Bd7 {[%clk
0:00:38.4]} 70. Ke3 {[%clk 0:00:39.1]} 70... Bc8 {[%clk 0:00:40.3]} 71. Kd4
{[%clk 0:00:40.8]} 71... Bb7 {[%clk 0:00:42.2]} 72. Ke3 {[%clk 0:00:42.6]} 72...
Ba6 {[%clk 0:00:44.1]} 73. Kd4 {[%clk 0:00:44.5]} 73... Bb5 {[%clk 0:00:46]} 74.
Ke3 {[%clk 0:00:46.4]} 74... Ba4 {[%clk 0:00:47.9]} 75. Kd4 {[%clk 0:00:48.3]}
75... Bb3 {[%clk 0:00:49.8]} 76. Ke3 {[%clk 0:00:50.2]} 76... Bc2 {[%clk
0:00:51.7]} 77. Kd4 {[%clk 0:00:52.1]} 77... Bb1 {[%clk 0:00:53.6]} 78. Ke3
{[%clk 0:00:54]} 78... Be4 {[%clk 0:00:55.5]} 79. Kd4 {[%clk 0:00:55.9]} 79...
Bc6 {[%clk 0:00:57.4]} 80. Ke3 {[%clk 0:00:57.8]} 80... Bd5 {[%clk 0:00:59.3]}
81. Kd4 {[%clk 0:00:59.7]} 81... Bc6 {[%clk 0:01:00.8]} 82. Ke3 {[%clk
0:01:01.6]} 82... Bb7 {[%clk 0:01:02.6]} 83. Kd4 {[%clk 0:01:03.5]} 83... Bc8
{[%clk 0:01:03.8]} 84. Ke3 {[%clk 0:01:05.4]} 84... Bd7 {[%clk 0:01:05.7]} 85.
Kd4 {[%clk 0:01:07.3]} 85... Be8 {[%clk 0:01:07.6]} 86. Ke3 {[%clk 0:01:09.2]}
86... Bf7 {[%clk 0:01:09.5]} 87. Kd4 {[%clk 0:01:11.1]} 87... Bg6 {[%clk
0:01:11.4]} 88. Ke3 {[%clk 0:01:13]} 88... Bh5 {[%clk 0:01:13.3]} 89. Kd4 {[%clk
0:01:14.9]} 89... Bg4 {[%clk 0:01:15.2]} 90. Ke3 {[%clk 0:01:16.8]} 90... Bh3
{[%clk 0:01:16.7]} 91. Kd4 {[%clk 0:01:18.7]} 91... Bg2 {[%clk 0:01:18.6]} 92.
Ke3 {[%clk 0:01:20.6]} 92... Bd5 {[%clk 0:01:17.2]} 93. Kd4 {[%clk 0:01:22.5]}
93... Be6 {[%clk 0:01:19.1]} 94. Ke3 {[%clk 0:01:24.4]} 94... Bd5 {[%clk
0:01:20.7]} 95. Kd4 {[%clk 0:01:26.3]} 95... Kg4 {[%clk 0:01:21.5]} 96. Ke3
{[%clk 0:01:28.2]} 96... Be6 {[%clk 0:01:21.9]} 97. Kd4 {[%clk 0:01:30.1]} 97...
Bf5 {[%clk 0:01:23.6]} 98. Ke3 {[%clk 0:01:32]} 98... Bg6 {[%clk 0:01:25.3]} 99.
Kd4 {[%clk 0:01:33.9]} 99... Bf5 {[%clk 0:01:27.2]} 100. Ke3 {[%clk 0:01:35.8]}
100... Bg6 {[%clk 0:01:29.1]} 101. f5 {[%clk 0:01:25.7]} 101... Bh7 {[%clk
0:01:31]} 102. f6 {[%clk 0:01:26.4]} 102... Bg8 {[%clk 0:01:31.5]} 103. f7
{[%clk 0:01:27]} 103... Bxf7 {[%clk 0:01:33.4]} 1/2-1/2

[Event "*** Titled Tuesday Blitz"]
[Site "Chess.com"]
[Date "2019.03.05"]
[Round "7"]
[White "martinmartinez95"]
[Black "DrMelekess"]
[Result "0-1"]
[WhiteElo "2473"]
[BlackElo "2705"]
[TimeControl "180+2"]
[EndTime "14:41:42 PST"]
[Termination "DrMelekess won by resignation"]

1. e4 {[%clk 0:03:01.9]} 1... d6 {[%clk 0:02:55.3]} 2. d4 {[%clk 0:03:01.6]}
2... Nf6 {[%clk 0:02:56.6]} 3. Nc3 {[%clk 0:02:58.9]} 3... e5 {[%clk 0:02:57.1]}
4. dxe5 {[%clk 0:02:57.3]} 4... dxe5 {[%clk 0:02:59]} 5. Qxd8+ {[%clk
0:02:58.8]} 5... Kxd8 {[%clk 0:03:00.9]} 6. f3 {[%clk 0:02:59.1]} 6... Bc5
{[%clk 0:03:01.1]} 7. Nh3 {[%clk 0:02:57.2]} 7... Bxh3 {[%clk 0:02:59.4]} 8.
gxh3 {[%clk 0:02:57.8]} 8... Ke7 {[%clk 0:02:50.4]} 9. Na4 {[%clk 0:02:50.2]}
9... Bb6 {[%clk 0:02:43.2]} 10. c4 {[%clk 0:02:49.8]} 10... Bd4 {[%clk
0:02:32.3]} 11. Nc3 {[%clk 0:02:43]} 11... c6 {[%clk 0:02:31.6]} 12. Ne2 {[%clk
0:02:43.1]} 12... Bc5 {[%clk 0:02:32]} 13. Bd2 {[%clk 0:02:41.7]} 13... a5
{[%clk 0:02:27.5]} 14. O-O-O {[%clk 0:02:40.6]} 14... Na6 {[%clk 0:02:27.1]} 15.
Bc3 {[%clk 0:02:37.2]} 15... Nd7 {[%clk 0:02:12.7]} 16. a3 {[%clk 0:02:31.7]}
16... Nc7 {[%clk 0:02:12.1]} 17. b4 {[%clk 0:02:21.8]} 17... axb4 {[%clk
0:02:11.1]} 18. axb4 {[%clk 0:02:22.8]} 18... Be3+ {[%clk 0:02:11.8]} 19. Kb2
{[%clk 0:02:20.7]} 19... Ne6 {[%clk 0:02:06]} 20. h4 {[%clk 0:02:20.6]} 20...
Ra4 {[%clk 0:01:32.4]} 21. Bh3 {[%clk 0:02:11]} 21... Rha8 {[%clk 0:01:31.6]}
22. Ra1 {[%clk 0:02:11.6]} 22... Rxa1 {[%clk 0:01:13.5]} 23. Rxa1 {[%clk
0:02:13.5]} 23... Rxa1 {[%clk 0:01:14.5]} 24. Kxa1 {[%clk 0:02:11.5]} 24... Nf4
{[%clk 0:01:13.7]} 25. Bf1 {[%clk 0:01:50.5]} 25... Nxe2 {[%clk 0:01:04.4]} 26.
Bxe2 {[%clk 0:01:50.2]} 26... Bf4 {[%clk 0:00:30.3]} 27. h3 {[%clk 0:01:15.2]}
27... Bg3 {[%clk 0:00:28.4]} 28. b5 {[%clk 0:01:14.7]} 28... Bxh4 {[%clk
0:00:20.2]} 29. bxc6 {[%clk 0:01:12.3]} 29... bxc6 {[%clk 0:00:22.1]} 30. Bd1
{[%clk 0:01:12.2]} 30... Bf2 {[%clk 0:00:21.2]} 31. Kb1 {[%clk 0:01:12.1]} 31...
Bd4 {[%clk 0:00:18.8]} 32. Bb4+ {[%clk 0:01:13.2]} 32... Bc5 {[%clk 0:00:20]}
33. Bc3 {[%clk 0:01:13.6]} 33... f6 {[%clk 0:00:21.4]} 34. Kc2 {[%clk
0:01:13.3]} 34... Nf8 {[%clk 0:00:22.3]} 35. Kd3 {[%clk 0:01:12]} 35... Ne6
{[%clk 0:00:23]} 36. Bd2 {[%clk 0:01:13.2]} 36... Kd6 {[%clk 0:00:19.5]} 37. Be2
{[%clk 0:01:03.7]} 37... Bf2 {[%clk 0:00:20.2]} 38. Bd1 {[%clk 0:01:03.5]} 38...
Bh4 {[%clk 0:00:21]} 39. Bb4+ {[%clk 0:00:34.9]} 39... c5 {[%clk 0:00:15.4]} 40.
Bd2 {[%clk 0:00:35.2]} 40... Bg5 {[%clk 0:00:16]} 41. Be2 {[%clk 0:00:31.4]}
41... Bxd2 {[%clk 0:00:16]} 42. Kxd2 {[%clk 0:00:32.5]} 42... Nf4 {[%clk
0:00:15.2]} 43. Bf1 {[%clk 0:00:33.6]} 43... Kc6 {[%clk 0:00:11.1]} 44. Kc3
{[%clk 0:00:34.3]} 44... Kb6 {[%clk 0:00:12]} 45. Kb3 {[%clk 0:00:35.4]} 45...
Ne6 {[%clk 0:00:11.7]} 46. Kc3 {[%clk 0:00:21.7]} 46... Nd4 {[%clk 0:00:11.4]}
47. Bg2 {[%clk 0:00:22.8]} 47... Ka5 {[%clk 0:00:11.4]} 48. h4 {[%clk 0:00:24]}
48... Ne6 {[%clk 0:00:08.7]} 49. Bh3 {[%clk 0:00:21]} 49... Nf4 {[%clk
0:00:09.6]} 50. Bf5 {[%clk 0:00:18.9]} 50... g6 {[%clk 0:00:08.7]} 51. Bg4
{[%clk 0:00:19.1]} 51... g5 {[%clk 0:00:06.7]} 52. h5 {[%clk 0:00:18.1]} 52...
h6 {[%clk 0:00:05.1]} 53. Kb3 {[%clk 0:00:18.9]} 53... Ne2 {[%clk 0:00:06.3]}
54. Kc2 {[%clk 0:00:09.4]} 54... Kb4 {[%clk 0:00:07.3]} 55. Kd3 {[%clk
0:00:10.3]} 55... Nf4+ {[%clk 0:00:08.5]} 56. Ke3 {[%clk 0:00:11.3]} 56... Kxc4
{[%clk 0:00:10.4]} 57. Bd7 {[%clk 0:00:12.1]} 57... Kc3 {[%clk 0:00:12.3]} 58.
Bb5 {[%clk 0:00:12.7]} 58... c4 {[%clk 0:00:14.2]} 59. Ba4 {[%clk 0:00:13.2]}
59... Kb2 {[%clk 0:00:14.6]} 60. Kf2 {[%clk 0:00:14.1]} 60... c3 {[%clk
0:00:16.5]} 61. Kg3 {[%clk 0:00:15.3]} 61... c2 {[%clk 0:00:18.4]} 62. Bxc2
{[%clk 0:00:15.9]} 62... Kxc2 {[%clk 0:00:19.4]} 63. Kg4 {[%clk 0:00:17.5]}
63... Kd3 {[%clk 0:00:18.7]} 64. Kf5 {[%clk 0:00:19.1]} 64... Nxh5 {[%clk
0:00:19.7]} 65. Kg6 {[%clk 0:00:20.8]} 65... Ke3 {[%clk 0:00:19.5]} 66. Kxh5
{[%clk 0:00:21.9]} 66... Kxf3 {[%clk 0:00:20.7]} 67. Kxh6 {[%clk 0:00:23.4]}
67... Kxe4 {[%clk 0:00:22.1]} 0-1

[Event "*** Titled Tuesday Blitz"]
[Site "Chess.com"]
[Date "2019.03.05"]
[Round "7"]
[White "joppie2"]
[Black "Hikaru"]
[Result "1/2-1/2"]
[WhiteElo "2779"]
[BlackElo "3125"]
[TimeControl "180+2"]
[EndTime "14:41:43 PST"]
[Termination "Game drawn by agreement"]

1. e4 {[%clk 0:02:58.9]} 1... e5 {[%clk 0:02:54.2]} 2. Nf3 {[%clk 0:02:59]} 2...
Nc6 {[%clk 0:02:55.6]} 3. Bb5 {[%clk 0:02:59.5]} 3... Nf6 {[%clk 0:02:56.7]} 4.
O-O {[%clk 0:03:01.1]} 4... Nxe4 {[%clk 0:02:57.8]} 5. Re1 {[%clk 0:03:02.7]}
5... Nd6 {[%clk 0:02:59.2]} 6. Nxe5 {[%clk 0:03:04.2]} 6... Be7 {[%clk
0:03:00.1]} 7. Bf1 {[%clk 0:03:05.8]} 7... Nf5 {[%clk 0:03:01.5]} 8. Nf3 {[%clk
0:03:04.5]} 8... O-O {[%clk 0:03:02.6]} 9. d4 {[%clk 0:03:05.8]} 9... d5 {[%clk
0:03:04.3]} 10. Nc3 {[%clk 0:03:07.2]} 10... Nh4 {[%clk 0:03:02.1]} 11. Nxh4
{[%clk 0:03:07]} 11... Bxh4 {[%clk 0:03:04]} 12. Ne2 {[%clk 0:03:07.2]} 12...
Bg5 {[%clk 0:02:58.8]} 13. c3 {[%clk 0:03:00.1]} 13... Re8 {[%clk 0:02:54.4]}
14. Bxg5 {[%clk 0:02:44.5]} 14... Qxg5 {[%clk 0:02:56.3]} 15. Nf4 {[%clk
0:02:42.7]} 15... Bd7 {[%clk 0:02:42.6]} 16. Qf3 {[%clk 0:02:37.8]} 16... Be6
{[%clk 0:02:31.6]} 17. Bb5 {[%clk 0:02:34.5]} 17... h6 {[%clk 0:02:07.2]} 18. h3
{[%clk 0:02:20.5]} 18... Rad8 {[%clk 0:02:00.4]} 19. Re3 {[%clk 0:02:10.9]}
19... a6 {[%clk 0:01:51.7]} 20. Bxc6 {[%clk 0:01:54.5]} 20... bxc6 {[%clk
0:01:53.6]} 21. Rae1 {[%clk 0:01:55.6]} 21... Bd7 {[%clk 0:01:54.4]} 22. Rxe8+
{[%clk 0:01:55.9]} 22... Bxe8 {[%clk 0:01:53.5]} 23. Nd3 {[%clk 0:01:53.3]}
23... a5 {[%clk 0:01:24.3]} 24. Nc5 {[%clk 0:01:51.4]} 24... Bd7 {[%clk
0:01:17.8]} 25. Re3 {[%clk 0:01:30.9]} 25... Bf5 {[%clk 0:01:11.6]} 26. h4
{[%clk 0:01:21]} 26... Qg6 {[%clk 0:01:12.1]} 27. Qf4 {[%clk 0:01:22.1]} 27...
Rc8 {[%clk 0:01:06.9]} 28. Re7 {[%clk 0:01:06.1]} 28... Bh3 {[%clk 0:01:00.5]}
29. Qg3 {[%clk 0:01:02.2]} 29... Qxg3 {[%clk 0:01:01.5]} 30. fxg3 {[%clk
0:01:03]} 30... Kf8 {[%clk 0:01:03.4]} 31. Re5 {[%clk 0:00:59]} 31... Bg4 {[%clk
0:01:04.7]} 32. Kf2 {[%clk 0:00:56.7]} 32... f6 {[%clk 0:01:03.3]} 33. Re1
{[%clk 0:00:52.4]} 33... h5 {[%clk 0:01:04.5]} 34. Ke3 {[%clk 0:00:46.4]} 34...
Kf7 {[%clk 0:01:01.2]} 35. Kd2 {[%clk 0:00:39.1]} 35... Rb8 {[%clk 0:00:53.2]}
36. b3 {[%clk 0:00:35.4]} 36... Bf5 {[%clk 0:00:54.8]} 37. a4 {[%clk 0:00:34.1]}
37... g6 {[%clk 0:00:49.4]} 38. Ra1 {[%clk 0:00:27]} 38... Bc8 {[%clk
0:00:41.9]} 39. Rb1 {[%clk 0:00:22.1]} 39... Bf5 {[%clk 0:00:43]} 40. Rf1 {[%clk
0:00:19.5]} 40... Ke7 {[%clk 0:00:42.5]} 41. Rf2 {[%clk 0:00:19.6]} 41... Kf7
{[%clk 0:00:42.5]} 42. Kc1 {[%clk 0:00:21]} 42... Rg8 {[%clk 0:00:42.1]} 43. Kb2
{[%clk 0:00:21.6]} 43... Be4 {[%clk 0:00:38.6]} 44. b4 {[%clk 0:00:22.6]} 44...
Ra8 {[%clk 0:00:39.4]} 45. Ka3 {[%clk 0:00:22.6]} 45... f5 {[%clk 0:00:39.7]}
46. bxa5 {[%clk 0:00:22.7]} 46... Rxa5 {[%clk 0:00:41.6]} 47. Kb4 {[%clk
0:00:22.4]} 47... Ra8 {[%clk 0:00:43.2]} 48. a5 {[%clk 0:00:23.8]} 48... Kf6
{[%clk 0:00:41.2]} 49. a6 {[%clk 0:00:24.2]} 49... g5 {[%clk 0:00:42.7]} 50.
hxg5+ {[%clk 0:00:21.8]} 50... Kxg5 {[%clk 0:00:44.6]} 51. Ne6+ {[%clk
0:00:13.7]} 51... Kg4 {[%clk 0:00:44.2]} 52. Nxc7 {[%clk 0:00:15.3]} 52... Ra7
{[%clk 0:00:45.7]} 53. Ra2 {[%clk 0:00:16.7]} 53... Kxg3 {[%clk 0:00:42.7]} 54.
Ne6 {[%clk 0:00:11.3]} 54... Bxg2 {[%clk 0:00:41.5]} 55. Kc5 {[%clk 0:00:10.9]}
55... Bf1 {[%clk 0:00:41.5]} 56. Ra1 {[%clk 0:00:09.2]} 56... Bc4 {[%clk
0:00:41.8]} 57. Rg1+ {[%clk 0:00:10.2]} 57... Kf3 {[%clk 0:00:39.7]} 58. Rg5
{[%clk 0:00:10.8]} 58... Ke4 {[%clk 0:00:40.3]} 59. Rxh5 {[%clk 0:00:11.6]}
59... Rxa6 {[%clk 0:00:41.6]} 60. Rh4+ {[%clk 0:00:12.7]} 60... Kd3 {[%clk
0:00:42.4]} 61. Rh3+ {[%clk 0:00:14.1]} 61... Kc2 {[%clk 0:00:43.8]} 62. Nf4
{[%clk 0:00:13.8]} 62... Kb3 {[%clk 0:00:24.4]} 63. Rf3 {[%clk 0:00:14.2]} 63...
Kc2 {[%clk 0:00:24.5]} 64. Ng6 {[%clk 0:00:13.6]} 64... Ra3 {[%clk 0:00:22.3]}
65. Ne7 {[%clk 0:00:13.5]} 65... Rxc3 {[%clk 0:00:22.3]} 66. Rxc3+ {[%clk
0:00:14.5]} 66... Kxc3 {[%clk 0:00:24.2]} 67. Nxf5 {[%clk 0:00:15.9]} 67... Bb5
{[%clk 0:00:12.8]} 68. Ne7 {[%clk 0:00:17.2]} 68... Ba4 {[%clk 0:00:14.2]} 69.
Nxd5+ {[%clk 0:00:17.7]} 1/2-1/2